bitfinex/quotes_ETHUSD_20250517
["timestamp","ask_amount","ask_price","bid_price","bid_amount"]
[1747505917021,12.01961572,2487.8,2486.4,0.55]
[1747505917217,22.457,2487.7,2486.5,8.04020549]
[1747505917451,4.02026733,2487.4,2486.6,0.55]
[1747505917651,4.02026733,2487.4,2486.4,3.7113]
[1747505917652,4.0201005,2487.5,2486.4,8.0]
[1747505917858,4.0201005,2487.5,2486.1,15.91610872]
[1747505917859,4.02165819,2486.6,2486.1,0.60980074]
[1747505918222,11.275,2487.2,2486.1,8.60980074]
[1747505918432,5.57145686,2487.9,2486.1,0.86098007]
[1747505918656,4.02042755,2487.3,2486.4,12.57172118]
[1747505918863,5.57145686,2487.9,2486.4,0.55]
[1747505919177,4.02019677,2487.5,2486.7,4.57128885]
[1747505919322,11.266,2487.7,2486.6,0.55]
[1747505919663,15.28587079,2487.7,2486.9,4.57105279]
[1747505919958,4.01767778,2489.0,2487.2,0.55]
[1747505920144,11.259,2488.8,2487.6,0.55]
[1747505920350,4.01889363,2488.3,2487.6,0.55]
[1747505920532,26.96605024,2489.1,2487.6,11.17]
[1747505920533,4.01861422,2488.5,2487.6,11.17]
[1747505920738,10.276,2488.9,2487.6,11.17]
[1747505920955,14.29386159,2488.9,2487.7,0.55]
[1747505921127,4.01930203,2488.0,2487.7,0.55]
[1747505921459,8.0,2488.3,2486.8,0.60980074]
[1747505921623,11.286,2488.1,2486.8,0.60980074]
[1747505921823,8.0,2488.0,2486.8,0.60980074]
[1747505922058,4.0210704,2486.9,2486.8,0.60980074]
[1747505922859,4.02067039,2487.2,2486.8,0.60980074]
[1747505923156,4.02101062,2487.0,2486.7,0.30296055]
[1747505923320,4.02118414,2486.9,2486.7,0.30296055]
[1747505923518,11.264,2487.3,2486.7,0.30296055]
[1747505923934,4.0212321,2486.8,2486.7,0.30296055]
[1747505924328,4.02026212,2487.4,2486.1,11.166]
[1747505924534,4.02164019,2486.6,2486.2,0.36221425]
[1747505924734,4.02173035,2486.5,2486.2,0.36221425]
[1747505925137,4.02156395,2486.6,2486.2,0.36221425]
[1747505925463,15.2559317,2487.0,2486.3,0.97201499]
[1747505925464,4.02176325,2486.5,2486.3,0.97201499]
[1747505925632,4.02160212,2486.6,2486.3,0.97201499]
[1747505926166,4.02187902,2486.4,2486.3,0.97201499]
[1747505926338,4.02187902,2486.4,2486.3,0.60980074]
[1747505926732,15.20487902,2486.4,2486.3,1.15980074]
[1747505926933,4.02187902,2486.4,2486.3,1.15980074]
[1747505927357,4.02187902,2486.4,2486.3,0.36540741]
[1747505927554,9.59223686,2487.1,2486.3,0.36540741]
[1747505927555,0.30409233,2486.6,2486.3,0.36540741]
[1747505927731,14.33545686,2487.2,2486.3,0.36540741]
[1747505928063,4.02176341,2486.5,2486.3,0.36540741]
[1747505928371,15.17876341,2486.5,2486.4,0.91540741]
[1747505929070,14.21375027,2486.5,2486.4,2.1350089]
[1747505929234,15.17876341,2486.5,2486.4,1.5850089]
[1747505929439,4.02176341,2486.5,2486.4,1.5850089]
[1747505929763,26.33776341,2486.5,2486.4,1.5850089]
[1747505929969,4.02176341,2486.5,2486.4,1.5850089]
[1747505930275,4.32305345,2486.6,2486.4,1.5850089]
[1747505930468,15.15576341,2486.5,2486.4,2.1350089]
[1747505930669,4.32305345,2486.6,2486.5,0.55]
[1747505930872,15.44305345,2486.6,2486.5,0.55]
[1747505931090,4.02171727,2486.5,2486.4,0.36540741]
[1747505931391,0.30140952,2486.6,2486.5,0.55]
[1747505931587,15.44096505,2486.6,2486.5,0.55]
[1747505931746,11.118,2486.6,2486.2,0.55]
[1747505932255,4.02171727,2486.5,2486.0,0.55]
[1747505932457,4.02171727,2486.5,2486.2,0.55]
[1747505932856,11.069,2486.8,2486.4,0.55]
[1747505933059,4.02168642,2486.6,2486.4,0.55]
[1747505933254,4.02168642,2486.6,2486.2,0.55]
[1747505933459,4.02157511,2486.6,2486.2,0.55]
[1747505933654,11.069,2486.8,2486.2,0.55]
[1747505933860,4.02139381,2486.7,2486.4,0.55]
[1747505934061,4.02158683,2486.6,2486.4,0.55]
[1747505934257,4.02187902,2486.4,2486.3,0.37546271]
[1747505934576,4.02187902,2486.4,2486.3,0.92546271]
[1747505935758,4.02187902,2486.4,2486.3,0.37546271]
[1747505936282,3.86464846,2486.4,2486.3,0.37546271]
[1747505937000,4.66484846,2486.4,2486.3,0.37546271]
[1747505937331,4.82207902,2486.4,2486.3,0.37546271]
[1747505937598,19.29607902,2486.4,2486.3,0.37546271]
[1747505937964,27.29607902,2486.4,2486.3,0.37546271]
[1747505938307,53.37828478,2486.4,2486.3,0.37546271]
[1747505938467,4.02333534,2485.5,2485.4,3.22270551]
[1747505938671,14.95933534,2485.5,2485.4,3.22270551]
[1747505939059,4.02349722,2485.4,2484.8,0.84089369]
[1747505939277,4.02428379,2485.0,2484.8,0.84089369]
[1747505939471,10.92,2484.9,2484.7,0.296]
[1747505939681,3.95820576,2485.5,2484.7,0.296]
[1747505939682,0.30082891,2485.4,2484.7,0.296]
[1747505939886,26.10677603,2485.3,2484.7,4.32053623]
[1747505940090,4.02384323,2485.2,2484.7,4.32053623]
[1747505940408,4.02399004,2485.1,2484.7,0.296]
[1747505940615,24.65843467,2485.3,2484.6,3.22270551]
[1747505940616,20.63476056,2485.3,2484.6,3.22270551]
[1747505940906,4.02463074,2484.7,2484.6,3.22270551]
[1747505941119,20.63476056,2485.3,2484.6,3.22270551]
[1747505941120,3.95820576,2485.7,2484.6,3.54497606]
[1747505941415,10.883,2485.6,2484.6,3.54497606]
[1747505941703,14.91544214,2485.5,2485.0,4.57405575]
[1747505942197,14.91546282,2485.5,2484.9,0.55]
[1747505942499,14.91546282,2485.5,2484.6,7.24746393]
[1747505942500,4.02422659,2485.0,2484.6,3.22270551]
[1747505942654,10.887,2484.9,2484.6,3.22270551]
[1747505943054,10.891,2485.2,2484.6,3.22270551]
[1747505943293,0.30327222,2485.9,2485.1,0.55]
[1747505943499,4.02318664,2485.6,2485.1,4.57386911]
[1747505943794,4.02233282,2486.2,2485.3,0.55]
[1747505944002,10.875,2485.7,2485.5,4.57322319]
[1747505944159,9.90964255,2485.7,2485.4,0.55]
[1747505944704,10.872,2485.7,2485.4,0.55]
[1747505945205,14.88112484,2485.7,2485.4,0.55]
[1747505945405,4.02310091,2485.7,2485.4,0.55]
[1747505945704,4.02236434,2486.1,2485.4,0.55]
[1747505945865,4.02257339,2486.0,2485.5,4.02333534]
[1747505946059,10.839,2485.9,2485.6,0.55]
[1747505946285,4.0230688,2485.7,2485.3,1.57791578]
[1747505946489,10.839,2485.9,2485.3,2.12791578]
[1747505946490,4.02349722,2485.4,2485.3,2.12791578]
[1747505947474,14.79720576,2485.9,2485.4,0.55]
[1747505947676,4.02333534,2485.5,2485.4,0.55]
[1747505948199,4.02349722,2485.4,2485.3,1.57791578]
[1747505948401,10.779,2485.4,2485.3,1.57791578]
[1747505948608,10.867,2485.8,2485.3,1.57791578]
[1747505948609,10.776,2485.5,2485.4,0.55]
[1747505949103,14.79933534,2485.5,2485.4,0.55]
[1747505949290,14.78433534,2485.5,2485.4,0.55]
[1747505949476,4.0232613,2485.6,2485.4,0.55]
[1747505949798,10.753,2485.5,2485.4,0.55]
[1747505950102,10.745,2485.6,2485.4,0.55]
[1747505950319,4.02214844,2486.3,2485.8,0.55]
[1747505950620,4.02222771,2486.2,2485.8,0.55]
[1747505950913,10.742,2486.3,2485.9,4.57263531]
[1747505951065,4.02025956,2487.5,2486.0,4.02252614]
[1747505951282,14.75834024,2486.8,2486.4,0.55]
[1747505951476,4.02140225,2486.7,2486.4,0.55]
[1747505951818,4.02133431,2486.8,2486.6,0.55]
[1747505952109,10.721,2486.9,2486.6,0.55]
[1747505952512,4.02078216,2487.1,2486.6,0.55]
[1747505952513,4.02079537,2487.1,2486.6,4.57143861]
[1747505952713,10.703,2487.1,2486.8,4.02113137]
[1747505952912,10.703,2487.1,2486.9,0.55]
[1747505953216,4.02067965,2487.2,2486.8,4.57119471]
[1747505953217,10.695,2487.2,2486.8,4.57119471]
[1747505953518,4.02026418,2487.4,2487.0,0.55]
[1747505953717,4.02026418,2487.4,2487.2,0.55]
[1747505954037,3.95820576,2488.0,2487.4,0.55]
[1747505954038,4.01965208,2487.8,2487.4,0.55]
[1747505954377,14.477,2488.4,2487.4,0.55]
[1747505954601,4.01877326,2488.4,2487.9,0.55]
[1747505954879,10.679,2488.4,2488.1,0.55]
[1747505955225,10.679,2488.5,2488.1,0.55]
[1747505955384,10.679,2488.5,2488.0,0.296]
[1747505955385,4.01840777,2488.6,2488.4,0.55]
[1747505955809,4.01840777,2488.6,2488.5,0.92910417]
[1747505956525,14.68817439,2488.7,2488.6,0.55]
[1747505957125,14.68817439,2488.7,2488.5,0.37910417]
[1747505957126,4.01832355,2488.6,2488.5,0.37910417]
[1747505957335,10.67,2488.7,2488.5,0.37910417]
[1747505957622,4.01832355,2488.6,2488.5,0.37910417]
[1747505957825,4.01817036,2488.7,2488.5,0.37910417]
[1747505957999,3.95820576,2488.9,2488.5,0.37910417]
[1747505958000,18.58010326,2488.9,2488.5,0.37910417]
[1747505958201,4.0176736,2489.1,2488.5,0.37910417]
[1747505958402,4.01794017,2488.9,2488.5,0.37910417]
[1747505958632,10.593,2489.1,2488.5,0.37910417]
[1747505958633,4.01771207,2489.0,2488.5,0.37910417]
[1747505958945,4.0177688,2489.0,2488.6,0.55]
[1747505959283,4.01785609,2488.9,2488.7,0.62743135]
[1747505959491,4.01785609,2488.9,2488.8,0.55]
[1747505959685,4.0178392,2488.9,2488.8,0.55]
[1747505960086,4.01800064,2488.8,2488.7,1.00653552]
[1747505960488,4.01800064,2488.8,2488.7,1.17743135]
[1747505960923,7.9762064,2488.8,2488.7,0.62743135]
[1747505961124,15.9762064,2488.8,2488.7,0.62743135]
[1747505961494,14.52820576,2489.3,2488.7,0.62743135]
[1747505961831,4.0178392,2488.9,2488.8,0.55]
[1747505962186,4.01782806,2489.0,2488.3,4.31478619]
[1747505962187,4.01848503,2488.5,2488.4,0.55]
[1747505962396,3.95820576,2489.0,2488.2,0.3757487]
[1747505962397,4.01880802,2488.3,2488.2,0.3757487]
[1747505962607,4.01868433,2488.4,2488.3,0.55]
[1747505962994,10.561,2488.4,2488.2,0.3757487]
[1747505963328,4.0192926,2488.0,2487.9,0.62743135]
[1747505963493,14.5742926,2488.0,2487.9,0.62743135]
[1747505964097,4.01945415,2487.9,2487.1,0.296]
[1747505964407,4.01996848,2487.6,2487.1,0.296]
[1747505964591,4.02018175,2487.5,2487.1,0.296]
[1747505964786,4.02058742,2487.2,2486.8,0.62743135]
[1747505965089,0.758,2487.8,2486.8,0.62743135]
[1747505965090,0.758,2487.8,2487.2,0.37567888]
[1747505965294,4.02042375,2487.3,2487.2,0.37567888]
[1747505966489,4.02082184,2487.1,2486.6,0.296]
[1747505966727,10.493,2487.3,2486.7,0.55]
[1747505966930,3.95820576,2487.6,2486.9,4.5710305]
[1747505967102,14.5051924,2487.5,2487.1,0.55]
[1747505967302,10.486,2487.6,2486.6,0.296]
[1747505967631,4.02042375,2487.3,2487.2,0.55]
[1747505967795,10.486,2487.6,2486.7,4.02131688]
[1747505967990,4.02054611,2487.3,2486.8,4.0212087]
[1747505968419,18.46415576,2487.6,2486.6,0.296]
[1747505968631,4.02074151,2487.2,2486.7,4.57128014]
[1747505968831,4.02074151,2487.2,2486.7,4.9473457]
[1747505969131,4.02103522,2487.0,2486.7,0.37606556]
[1747505969293,14.44420576,2487.6,2486.8,0.55]
[1747505969499,4.0210704,2486.9,2486.8,0.55]
[1747505969718,4.0212321,2486.8,2486.7,0.37606556]
[1747505970025,10.445,2487.0,2486.4,0.55]
[1747505970206,10.445,2487.0,2486.7,0.55]
[1747505970408,14.46591414,2487.0,2486.7,0.55]
[1747505970606,4.02110956,2486.9,2486.6,0.55]
[1747505970808,14.43598138,2487.0,2486.6,0.55]
[1747505971011,14.43598138,2487.0,2486.3,18.48800976]
[1747505971012,10.415,2487.0,2486.4,0.55]
[1747505971212,4.0210704,2486.9,2486.5,0.55]
[1747505971409,14.43594233,2487.0,2486.5,4.57165363]
[1747505972111,14.40594233,2487.0,2486.5,4.57165363]
[1747505973435,4.0210859,2486.9,2486.4,4.57179753]
[1747505974536,14.36099321,2487.0,2486.6,0.55]
[1747505975001,4.02108999,2486.9,2486.6,0.55]
[1747505975200,4.02108999,2486.9,2486.4,4.57178761]
[1747505976049,4.02123326,2486.8,2486.3,4.57195427]
[1747505976344,4.02123326,2486.8,2486.6,0.55]
[1747505976499,4.02110892,2486.9,2486.6,0.55]
[1747505976935,4.02130396,2486.8,2486.6,0.55]
[1747505977126,10.288,2487.0,2486.3,4.57200919]
[1747505977127,4.02148447,2486.7,2486.3,4.57200919]
[1747505977297,4.02148447,2486.7,2486.3,0.55]
[1747505977298,4.0215039,2486.7,2486.3,0.55]
[1747505977501,14.24620576,2487.0,2486.2,0.47064392]
[1747505977704,4.02175972,2486.5,2486.2,0.47064392]
[1747505978003,4.02224369,2486.2,2485.9,0.47064392]
[1747505978406,14.26909109,2486.3,2485.9,0.47064392]
[1747505978706,4.02237517,2486.1,2485.9,0.84894286]
[1747505978902,4.02163086,2486.6,2486.2,0.55]
[1747505979201,4.02163086,2486.6,2485.9,0.84894286]
[1747505979202,14.244622,2486.6,2485.9,0.84894286]
[1747505979421,14.244622,2486.6,2486.2,0.55]
[1747505979627,10.223,2486.6,2486.0,0.84894286]
[1747505979946,4.02178479,2486.5,2486.0,4.87131993]
[1747505980237,3.95820576,2487.3,2486.1,0.04022032]
[1747505980537,10.222,2487.0,2486.6,0.55]
[1747505980738,4.02131376,2486.8,2486.4,0.55]
[1747505980905,4.02117276,2486.9,2486.4,4.57179538]
[1747505981100,14.18020576,2487.0,2486.3,0.55]
[1747505981325,4.02147253,2486.7,2486.3,0.55]
[1747505981525,3.95820576,2487.0,2486.3,4.57202545]
[1747505981748,3.95820576,2487.3,2486.6,0.55]
[1747505981973,4.02118381,2486.9,2486.6,0.55]
[1747505982120,4.02125413,2486.8,2486.5,0.55]
[1747505982832,4.02147231,2486.7,2486.5,0.55]
[1747505983139,4.02131737,2486.8,2486.6,0.37889864]
[1747505983755,4.02139381,2486.7,2486.6,0.37889864]
[1747505984458,4.02171727,2486.5,2486.4,0.37889864]
[1747505984973,4.02171727,2486.5,2486.4,0.92889864]
[1747505985263,4.02171727,2486.5,2486.3,0.47064392]
[1747505985264,4.02187902,2486.4,2486.3,0.47064392]
[1747505985628,4.02187902,2486.4,2486.3,1.02064392]
[1747505986029,4.02171727,2486.5,2486.3,1.02064392]
[1747505986325,4.02187902,2486.4,2486.3,0.55]
[1747505986525,14.13487902,2486.4,2486.3,0.55]
[1747505987948,18.09308478,2486.4,2486.3,0.55]
[1747505988263,28.30708478,2486.4,2486.3,0.55]
[1747505988874,4.02186184,2486.5,2486.4,0.55]
[1747505989170,4.02186184,2486.5,2485.8,0.04022474]
[1747505989171,4.02246939,2486.1,2485.6,0.55]
[1747505989666,4.02252614,2486.0,2485.6,0.55]
[1747505989969,4.02271691,2485.9,2485.8,0.55]
[1747505990269,10.049,2485.9,2485.7,0.37950447]
[1747505990570,10.049,2485.8,2485.5,0.55]
[1747505990867,10.041,2485.8,2485.7,0.55]
[1747505991250,10.041,2485.8,2485.5,4.57329012]
[1747505991451,14.06384978,2485.8,2485.7,0.37982697]
[1747505992536,14.03284978,2485.8,2485.7,0.37982697]
[1747505993550,22.03284978,2485.8,2485.7,0.37982697]
[1747505993745,22.03284978,2485.8,2485.5,0.47064392]
[1747505993746,4.02317347,2485.6,2485.5,0.47064392]
[1747505994745,4.02329741,2485.6,2484.9,1.02064392]
[1747505994947,4.02348424,2485.5,2484.9,0.47064392]
[1747505995461,4.02333151,2485.6,2485.1,0.55]
[1747505995648,4.02370906,2485.3,2485.0,0.93047502]
[1747505996070,13.97062455,2485.4,2485.0,0.93047502]
[1747505996071,4.02383393,2485.2,2485.0,0.93047502]
[1747505996278,4.02372547,2485.3,2485.0,0.93047502]
[1747505996482,4.02373941,2485.3,2485.0,0.93047502]
[1747505996670,4.02368286,2485.3,2485.0,1.02064392]
[1747505996872,4.02390237,2485.2,2485.0,1.02064392]
[1747505997043,8.74638869,2485.1,2485.0,0.47064392]
[1747505998577,4.02414486,2485.0,2484.9,0.55]
[1747505998956,4.02414486,2485.0,2484.5,4.0248959]
[1747505999167,4.02414486,2485.0,2484.6,0.55]
[1747505999168,13.91430733,2484.9,2484.6,0.55]
[1747505999681,9.89,2484.9,2484.8,0.55]
[1747505999885,9.877,2484.9,2484.8,0.55]
[1747506000680,13.90130681,2484.9,2484.8,0.55]
[1747506001181,13.90130681,2484.9,2484.8,0.93015819]
[1747506001557,4.02382102,2485.2,2484.5,0.47064392]
[1747506001748,4.26665678,2485.3,2484.7,0.55]
[1747506001749,9.849,2484.9,2484.7,0.55]
[1747506001953,13.8733238,2484.9,2484.7,0.55]
[1747506002153,13.8733238,2484.9,2484.5,0.47064392]
[1747506002154,4.02463074,2484.7,2484.6,0.55]
[1747506002372,13.97300421,2485.1,2484.8,0.55]
[1747506002692,9.846,2485.0,2484.6,4.57475562]
[1747506002894,9.846,2485.0,2484.6,4.95471936]
[1747506002895,13.87015499,2485.0,2484.6,4.95471936]
[1747506003409,0.30845102,2485.3,2484.6,4.95466273]
[1747506003698,19.772,2485.2,2484.9,0.55]
[1747506003851,9.818,2485.1,2484.8,0.55]
[1747506004348,4.02365911,2485.3,2484.8,4.574401]
[1747506004551,9.812,2485.2,2484.8,4.574401]
[1747506004757,9.812,2485.2,2484.7,4.40457912]
[1747506004758,9.806,2485.1,2484.7,0.37996374]
[1747506004984,4.02446877,2484.8,2484.7,0.37996374]
[1747506005352,4.02463074,2484.7,2484.6,0.47064392]
[1747506005551,4.02463074,2484.7,2484.6,1.02064392]
[1747506006793,4.02463074,2484.7,2484.6,1.40064586]
[1747506007789,4.02463074,2484.7,2484.6,0.93000194]
[1747506007995,9.951,2485.0,2484.7,0.55]
[1747506008179,13.77737395,2484.9,2484.7,0.55]
[1747506008513,13.77737395,2484.9,2484.6,0.38000194]
[1747506008514,4.02460006,2484.8,2484.6,0.38000194]
[1747506008796,9.753,2484.9,2484.6,0.38000194]
[1747506008797,13.77744245,2484.9,2484.6,0.38000194]
[1747506009000,9.738,2484.8,2484.7,4.95462777]
[1747506009212,0.7642,2485.5,2484.8,0.55]
[1747506009358,9.743,2485.9,2485.0,0.55]
[1747506009558,9.743,2485.9,2485.5,0.55]
[1747506009791,4.0234905,2485.5,2484.9,4.02418791]
[1747506010010,4.02398293,2485.1,2485.0,0.55]
[1747506010193,4.02398293,2485.1,2484.8,0.296]
[1747506010194,13.76798293,2485.1,2484.9,0.55]
[1747506010489,9.744,2485.1,2484.9,0.55]
[1747506010692,13.76798293,2485.1,2485.0,0.93000194]
[1747506011711,9.744,2485.1,2485.0,0.93000194]
[1747506011908,14.482,2485.8,2485.1,0.55]
[1747506012131,4.02343816,2485.5,2485.1,0.55]
[1747506012906,4.02343816,2485.5,2485.2,0.38000194]
[1747506013111,4.02349752,2485.4,2485.3,0.55]
[1747506013403,13.70749752,2485.4,2485.3,0.55]
[1747506013771,13.70749752,2485.4,2485.3,0.93000194]
[1747506014990,19.613,2485.4,2485.3,0.93000194]
[1747506015376,18.50489936,2485.8,2485.3,0.93000194]
[1747506015597,9.653,2485.7,2485.3,0.93000194]
[1747506015875,4.02349722,2485.4,2485.3,0.93000194]
[1747506017479,13.65449722,2485.4,2485.3,0.93000194]
[1747506018181,13.65449722,2485.4,2485.3,0.38000194]
[1747506018377,14.45139722,2485.4,2485.3,0.38000194]
[1747506018784,4.82039722,2485.4,2485.3,0.38000194]
[1747506019010,9.622,2485.4,2485.3,0.38000194]
[1747506019320,9.628,2485.4,2485.3,0.55]
[1747506019897,13.65149722,2485.4,2485.3,0.55]
[1747506020196,0.8008,2486.2,2485.3,0.55]
[1747506020523,9.614,2486.1,2485.8,0.55]
[1747506020721,9.635,2486.0,2485.6,4.02308248]
[1747506020931,9.635,2486.0,2485.7,0.55]
[1747506021087,9.631,2486.0,2485.6,0.55]
[1747506021925,9.631,2486.0,2485.4,4.02343612]
[1747506021926,9.631,2486.0,2485.7,0.38117902]
[1747506022123,13.65360158,2486.0,2485.7,0.38117902]
[1747506022326,9.631,2486.0,2485.7,0.38117902]
[1747506022546,4.02268796,2485.9,2485.7,0.38117902]
[1747506022929,4.02284978,2485.8,2485.7,0.38117902]
[1747506023133,4.02284978,2485.8,2485.7,0.47064392]
[1747506023427,4.82364978,2485.8,2485.7,0.47064392]
[1747506023800,4.02276319,2485.9,2485.7,0.47064392]
[1747506024025,9.591,2485.8,2485.7,0.47064392]
[1747506024226,13.61384978,2485.8,2485.7,0.47064392]
[1747506024523,13.61384978,2485.8,2485.7,1.40181954]
[1747506024922,4.02283488,2485.9,2485.7,1.40181954]
[1747506025139,9.583,2485.8,2485.7,1.40181954]
[1747506025315,4.02261048,2486.0,2485.8,0.55]
[1747506025514,9.584,2485.9,2485.8,0.55]
[1747506025702,9.579,2485.9,2485.7,0.55]
[1747506025901,13.60170163,2485.9,2485.7,0.55]
[1747506026100,9.579,2485.9,2485.6,0.55]
[1747506026308,4.78588307,2486.3,2485.9,0.55]
[1747506026506,4.78588307,2486.3,2485.8,0.55]
[1747506026507,4.02255159,2486.0,2485.8,0.55]
[1747506026713,4.02240076,2486.1,2485.7,0.55]
[1747506027116,13.58925208,2486.2,2485.7,4.57298411]
[1747506027437,4.02238139,2486.1,2485.6,4.57309286]
[1747506028237,4.02238139,2486.1,2485.8,0.55]
[1747506028439,1.07186423,2486.6,2486.3,0.55]
[1747506028639,1.07186423,2486.6,2485.8,0.59022632]
[1747506028640,13.54881569,2486.5,2486.1,0.55]
[1747506028852,4.02204096,2486.3,2485.8,4.57277103]
[1747506029030,4.02188873,2486.4,2485.9,4.02258427]
[1747506029349,4.02189942,2486.4,2486.0,0.55]
[1747506029552,4.02189942,2486.4,2486.0,0.93063096]
[1747506030104,4.02143236,2486.7,2486.0,0.93063096]
[1747506030317,4.02143236,2486.7,2486.2,0.55]
[1747506030318,4.02174886,2486.5,2486.2,0.55]
[1747506030606,4.02193171,2486.4,2486.1,0.55]
[1747506030803,4.02220255,2486.2,2486.1,0.55]
[1747506031417,4.02220255,2486.2,2486.1,0.93063096]
[1747506031753,18.42950885,2486.2,2486.1,0.38063096]
[1747506032170,26.42950885,2486.2,2486.1,0.38063096]
[1747506032527,16.77750885,2486.2,2486.1,0.38063096]
[1747506032718,14.29620255,2486.2,2486.1,0.38063096]
[1747506033058,4.02213291,2486.3,2486.1,0.38063096]
[1747506033356,4.0225858,2486.0,2485.6,0.55]
[1747506033556,4.02272325,2485.9,2485.6,0.55]
[1747506033728,4.02261743,2486.0,2485.6,0.55]
[1747506033934,4.02280207,2485.9,2485.6,0.55]
[1747506034547,4.02280207,2485.9,2485.8,0.55]
[1747506035117,4.02280207,2485.9,2485.7,0.3803435]
[1747506035118,4.02284978,2485.8,2485.7,0.3803435]
[1747506035630,13.6143063,2486.2,2485.8,0.55]
[1747506035859,4.02284978,2485.8,2485.7,0.9303435]
[1747506036261,4.02268796,2485.9,2485.7,0.9303435]
[1747506036262,4.02271471,2485.9,2485.7,0.9303435]
[1747506036428,4.02278005,2485.9,2485.7,0.9303435]
[1747506036629,4.02279293,2485.9,2485.7,0.9303435]
[1747506036956,4.02284978,2485.8,2485.7,0.9303435]
[1747506037157,4.02277401,2485.9,2485.8,0.3803435]
[1747506037328,9.415,2485.9,2485.8,0.3803435]
[1747506037533,13.43768796,2485.9,2485.8,0.3803435]
[1747506037925,4.02304293,2485.7,2485.5,0.9303435]
[1747506038259,4.02317347,2485.6,2485.5,0.9303435]
[1747506038556,4.02317347,2485.6,2485.5,0.3803435]
[1747506038758,7.98547977,2485.6,2485.5,0.3803435]
[1747506039524,7.98547977,2485.6,2484.6,20.06353104]
[1747506039525,3.9623063,2485.6,2485.0,0.47064392]
[1747506039721,4.02398293,2485.1,2485.0,0.47064392]
[1747506039938,4.02398293,2485.1,2485.0,1.02064392]
[1747506040633,4.02398293,2485.1,2485.0,1.4017825]
[1747506041239,4.32030186,2485.1,2485.0,0.8517825]
[1747506041459,12.32030186,2485.1,2485.0,0.8517825]
[1747506042355,4.02511672,2484.4,2484.3,0.8517825]
[1747506043060,12.02511672,2484.4,2484.3,0.8517825]
[1747506043369,15.75892851,2484.4,2484.3,0.47064392]
[1747506044229,15.75892851,2484.4,2484.1,0.62743135]
[1747506044230,12.02544078,2484.2,2484.1,0.62743135]
[1747506044426,21.38244078,2484.2,2484.1,0.62743135]
[1747506045153,12.02560283,2484.1,2483.2,0.38113858]
[1747506045356,9.316,2484.0,2483.2,0.38113858]
[1747506045560,4.02641327,2483.6,2483.3,0.55]
[1747506045737,7.75999055,2483.8,2483.3,0.55]
[1747506045738,9.311,2483.5,2483.3,0.55]
[1747506046646,4.02681519,2483.4,2483.1,0.55]
[1747506046843,4.02681519,2483.4,2483.0,0.55]
[1747506047059,13.33765144,2483.5,2483.0,4.57737907]
[1747506047267,4.02709775,2483.2,2482.9,0.296]
[1747506047459,4.02673753,2483.4,2482.9,0.296]
[1747506047681,3.73381179,2483.2,2482.8,0.62743135]
[1747506047881,4.02697386,2483.3,2482.8,4.02764914]
[1747506048033,3.73381179,2483.2,2482.3,0.296]
[1747506048236,4.02726437,2483.1,2482.4,4.02826539]
[1747506048448,3.73381179,2483.2,2482.3,0.296]
[1747506048449,13.31541037,2483.0,2482.3,0.296]
[1747506048677,13.31548916,2483.0,2482.3,0.296]
[1747506048856,9.288,2483.0,2482.3,0.296]
[1747506049062,9.288,2483.0,2482.6,4.02793548]
[1747506049238,9.288,2483.0,2482.7,0.55]
[1747506049440,4.02755016,2482.9,2482.5,0.55]
[1747506049660,9.288,2483.0,2482.6,4.0279744]
[1747506050176,13.31547831,2483.0,2482.5,4.57818678]
[1747506050566,9.288,2483.0,2482.6,4.02800897]
[1747506050762,9.252,2482.9,2482.8,4.57770298]
[1747506051138,14.17477214,2483.7,2482.8,5.43827862]
[1747506051472,9.25,2483.6,2483.5,0.55]
[1747506051691,7.75974275,2483.9,2483.4,4.57665002]
[1747506051894,13.27408951,2483.8,2483.4,0.55]
[1747506052243,4.02665535,2483.5,2483.1,0.55]
[1747506052779,4.0269578,2483.3,2482.9,0.55]
[1747506052949,9.234,2483.2,2482.9,0.55]
[1747506053152,9.234,2483.2,2483.1,0.55]
[1747506053337,9.234,2483.2,2482.9,0.55]
[1747506053751,9.234,2483.2,2482.9,4.5775065]
[1747506054240,13.26111628,2483.2,2482.7,0.296]
[1747506054435,9.234,2483.2,2482.2,0.62743135]
[1747506054650,4.02771243,2482.8,2482.3,4.32445229]
[1747506054856,3.73381179,2483.0,2482.3,4.32449704]
[1747506054857,9.217,2482.7,2482.3,4.32449704]
[1747506055254,9.217,2482.7,2482.3,4.32452003]
[1747506055574,4.02820386,2482.5,2482.3,0.296]
[1747506055774,13.24494388,2482.7,2482.3,0.296]
[1747506055954,9.217,2482.7,2482.3,4.32450102]
[1747506056156,9.217,2482.7,2482.3,4.32442958]
[1747506056586,13.24492395,2482.7,2482.4,0.55]
[1747506057402,9.217,2482.7,2482.4,0.55]
[1747506057759,9.217,2482.7,2482.3,4.32446644]
[1747506057760,4.02810447,2482.6,2482.3,0.55]
[1747506058166,4.02810447,2482.6,2482.0,4.32499124]
[1747506058167,4.02809013,2482.6,2482.1,4.57877256]
[1747506058400,4.02843594,2482.4,2482.1,0.55]
[1747506058600,4.02803512,2482.6,2482.1,0.55]
[1747506058601,4.02819738,2482.5,2482.1,0.55]
[1747506058766,26.34377151,2482.7,2482.3,0.55]
[1747506059394,18.582,2482.7,2482.3,0.55]
[1747506059598,22.60988119,2482.7,2482.3,4.57843848]
[1747506059767,18.582,2482.7,2482.2,0.55]
[1747506059967,22.60987311,2482.7,2482.2,0.55]
[1747506060200,4.02828059,2482.5,2482.1,0.55]
[1747506060363,4.02819738,2482.5,2482.1,0.55]
[1747506060563,4.02836648,2482.4,2482.1,0.55]
[1747506060898,3.73381179,2482.4,2481.7,0.296]
[1747506061101,3.73381179,2482.4,2481.7,4.32542875]
[1747506061262,4.02880567,2482.2,2481.7,4.32542875]
[1747506061458,9.137,2482.1,2481.8,4.02932671]
[1747506061663,9.137,2482.1,2481.8,4.02921944]
[1747506061898,4.55191179,2482.9,2481.8,0.40292194]
[1747506062084,13.17871356,2482.8,2482.0,0.55]